Cogmind - Beta 11 X9 @@@ ROGUE MODE // 2022.01.20 @ 12:50:27 // Winter2021/Sauler Player: sentrybuster Result: Self-destructed Performance ------------- Evolutions (1) 500 Regions Visited (2) 400 Robots Destroyed (15) 75 Value Destroyed (315) 315 Prototype IDs (2) 40 Alien Tech Used (0) 0 Bonus (0) 0 TOTAL SCORE: 1330 Bonus ------- None Cogmind --------- Core Integrity 381/400 Matter 300/300 Energy 250/250 System Corruption 0% Temperature Cool (0) Movement Rolling (115) Ox1 Location -9/Materials Parts ------- > --- POWER (1) -------- Ion Engine > --- PROPULSION (3) --- Compact Wheel Compact Wheel > --- UTILITY (2) ------ Large Storage Unit Shield Generator > --- WEAPON (3) ------- EM Pulse Gun Medium Laser Light Cannon > --- INVENTORY (15) --- Light Ion Engine Light Treads Light Treads Light Treads Wheel Medium Matter Pod (100) Improved Terrain Scanner Medium Armor Plating Light Assault Rifle Grenade Launcher Datajack Mining Laser Peak State ------------ > --- POWER ------------ Ion Engine > --- PROPULSION ------- Wheel Compact Wheel Compact Wheel > --- UTILITY ---------- Large Storage Unit Shield Generator > --- WEAPON ----------- EM Pulse Gun Medium Laser Light Cannon > --- INVENTORY -------- Light Ion Engine Light Treads Light Treads Wheel Medium Matter Pod Improved Terrain Scanner Light Assault Rifle Grenade Launcher Datajack Mining Laser [Rating: 11] Favorites ----------- Power Ion Engine Engine Ion Engine Propulsion Compact Wheel Wheel Compact Wheel Utility Large Storage Unit Device Shield Generator Storage Large Storage Unit Weapon Medium Laser Energy Gun Medium Laser Ballistic Gun Light Assault Rifle Ballistic Cannon Light Cannon Build | -11 -10 -9 ------- Run | Scr Mat Mat Slots Evolved 2 | . . 2 Power . | . . . Propulsion 1 | . . 1 Utility . | . . . Weapon 1 | . . 1 Parts Attached 11 | 6 3 2 Power 1 | 1 . . Engine 1 | 1 . . Core . | . . . Reactor . | . . . Propulsion 3 | 2 . 1 Treads . | . . . Leg . | . . . Wheel 3 | 2 . 1 Hover . | . . . Flight . | . . . Utility 3 | 1 2 . Device 1 | . 1 . Storage 2 | 1 1 . Processor . | . . . Hackware . | . . . Protection . | . . . Artifact . | . . . Weapon 4 | 2 1 1 Energy Gun 2 | 1 . 1 Energy Cannon . | . . . Ballistic Gun 1 | 1 . . Ballistic Cannon 1 | . 1 . Launcher . | . . . Special Weapon . | . . . Impact Weapon . | . . . Slashing Weapon . | . . . Piercing Weapon . | . . . Special Melee Weapon . | . . . Unidentified Prototypes . | . . . Parts Lost 1 | . . 1 Power . | . . . Propulsion 1 | . . 1 Utility . | . . . Weapon . | . . . Highest Loss Streak 1 | . . 1 Average Slot Usage (%) 91 | . 89 94 Engine 13 | . 14 11 Wheel 28 | . 28 28 Device 6 | . 4 11 Storage 13 | . 14 11 Energy Gun 16 | . 14 22 Ballistic Gun 5 | . 7 . Ballistic Cannon 7 | . 6 11 Naked Turns . | . . . Heaviest Build 34 | 13 33 34 Greatest Support 42 | 32 32 42 Greatest Overweight (x) 1 | . 1 1 Average Overweight (x) . | . . . Largest Inventory Capacity 15 | 8 15 15 Average Capacity 12 | 7 13 15 Most Carried 12 | 6 12 12 Average Carried 8 | 3 8 11 Final Capacity 15 | 8 15 15 Final Carried 12 | 6 12 12 Class Distribution -------------------- 74% | Mutant 25% | Tank Dominant Class ---------------- Mutant | -10/Materials Tank | -9/Materials Resources | -11 -10 -9 ----------- Run | Scr Mat Mat Matter Collected 499 | 237 87 175 Remotely . | . . . Salvage Created 576 | 168 49 359 Parts 26 | 7 3 16 Haulers Intercepted 1 | . 1 . Recyclers Shooed . | . . . Parts Field Recycled . | . . . Retrieved Matter . | . . . Parts Self-Destructed . | . . . Prevented . | . . . Kills | -11 -10 -9 ------- Run | Scr Mat Mat Combat Hostiles Destroyed 7 | . 1 6 Guns 4 | . . 4 Cannons 3 | . 1 2 Classes Destroyed 7 | 3 2 2 Worker 3 | 2 . 1 Tunneler 2 | 2 . . Hauler 1 | . 1 . Recycler 2 | 1 . 1 Grunt 2 | . 1 1 Brawler 1 | . . 1 Sentry 4 | . . 4 Best Kill Streak 5 | 5 1 4 Combat Bots Only 3 | . 1 3 Max Kills in Single Turn 1 | 1 1 1 Gunslinging . | . . . Exploded . | . . . Melee . | . . . Uniques/NPCs Destroyed . | . . . Combat | -11 -10 -9 -------- Run | Scr Mat Mat Damage Taken 311 | . 54 257 Core 61 | . 42 19 Absorbed by Shields 87 | . . 87 Core Remaining (%) 91 | 100 83 . Volleys Fired 40 | 16 9 15 Largest 3 | 2 2 3 Hottest 125 | 70 85 125 Shots Fired 76 | 23 17 36 Gun 55 | 23 11 21 Cannon 21 | . 6 15 Launcher . | . . . Special . | . . . Kinetic 31 | 7 9 15 Thermal 30 | 16 8 6 Explosive . | . . . Electromagnetic 15 | . . 15 Robot Hit Streak 12 | 12 4 10 Robot Miss Streak 2 | 1 2 1 Penetration Max . | . . . Secondary Targets . | . . . Shots Hit Robots 56 | 19 11 26 Core Hits 24 | 8 4 12 Critical Kills . | . . . Critical Parts Destroyed . | . . . Critical Strikes 3 | . 1 2 Burn 2 | . 1 1 Blast 1 | . . 1 Melee Attacks . | . . . Impact . | . . . Slashing . | . . . Piercing . | . . . Sneak Attacks . | . . . Combat Hostiles . | . . . Follow-up Attacks . | . . . Damage Inflicted 839 | 222 167 450 Guns 453 | 222 56 175 Cannons 351 | . 111 240 Explosions 35 | . . 35 Melee . | . . . Ramming . | . . . Kinetic 404 | 46 118 240 Thermal 327 | 176 49 102 Explosive . | . . . Electromagnetic 108 | . . 108 Impact . | . . . Slashing . | . . . Piercing . | . . . Highest Corruption . | . . . Average Corruption . | . . . Corruption Purged . | . . . Overload Shots . | . . . Overflow Damage . | . . . Projectiles . | . . . Explosions . | . . . Melee . | . . . Knockbacks 1 | . 1 . Impact . | . . . Kinetic 1 | . 1 . Secondary . | . . . Self-Inflicted Damage . | . . . Shots . | . . . Rammed . | . . . Targets Rammed . | . . . Kicked . | . . . Crushed . | . . . Highest Temperature 140 | 140 120 110 Average Temperature 50 | 63 46 42 Received Heat Transfer 118 | . 30 88 Siege Activations . | . . . Robots Corrupted . | . . . Combat Hostiles . | . . . Parts Fried . | . . . Impact Corruptions . | . . . Robots Melted . | . . . Combat Hostiles . | . . . Parts Melted 1 | . . 1 Heat Transferred 1049 | 518 222 309 Parts Sabotaged . | . . . Parts Stolen . | . . . Parts Stripped . | . . . Power Chain Reactions 1 | . . 1 Missiles Intercepted . | . . . Alert | -11 -10 -9 ------- Run | Scr Mat Mat Peak Influence 248 | 25 84 248 Initial 16 | . 16 . Average 62 | 5 51 118 Maximum Alert Level 1 | . . 1 Low Security (%) 92 | 100 100 72 Level 1 7 | . . 27 Level 2 . | . . . Level 3 . | . . . Level 4 . | . . . Level 5 . | . . . High Security . | . . . Max Security . | . . . Squads Dispatched . | . . . Investigation . | . . . Extermination . | . . . Reinforcement . | . . . Assault . | . . . Garrison . | . . . Intercept . | . . . Construction Impeded . | . . . Haulers Reinforced . | . . . Active Scanning Responses . | . . . Cargo Convoy Interrupts . | . . . Stealth | -11 -10 -9 --------- Run | Scr Mat Mat Distress Signals . | . . . Communications Jammed . | . . . Distress Signals . | . . . Times Spotted 9 | . 3 6 Peak Tracking Total 3 | . 1 3 Tactical Retreats . | . . . Traps | -11 -10 -9 ------- Run | Scr Mat Mat Traps Triggered . | . . . Indirectly . | . . . Trap Hack Attempts . | . . . Triggered . | . . . Disarmed . | . . . Reprogrammed . | . . . Reused . | . . . Traps Extracted . | . . . Installed . | . . . Triggered . | . . . Machines | -11 -10 -9 ---------- Run | Scr Mat Mat Machines Disabled . | . . . Max in Single Turn . | . . . Machines Sabotaged . | . . . Garrisons Compromised . | . . . Overloaded Fab Kills . | . . . Hacking | -11 -10 -9 --------- Run | Scr Mat Mat Machines Accessed 7 | . 5 2 Terminals 6 | . 4 2 Fabricators . | . . . Repair Stations . | . . . Recycling Units 1 | . 1 . Scanalyzers . | . . . Garrison Access . | . . . Total Hacks 23 | . 14 9 Successful 12 | . 8 4 Failed 11 | . 6 5 Catastrophic . | . . . Database Lockouts . | . . . Manual 15 | . 8 7 Terminals 21 | . 12 9 Fabricators . | . . . Repair Stations . | . . . Recycling Units 2 | . 2 . Scanalyzers . | . . . Garrison Access . | . . . Terminal Hacks 7 | . 4 3 Robot Analysis 2 | . 1 1 Prototype ID Bank 1 | . 1 . Terminal Index 1 | . . 1 Alert Level 1 | . . 1 Zone Layout 2 | . 2 . Fabricator Hacks . | . . . Repair Station Hacks . | . . . Recycling Unit Hacks 1 | . 1 . Retrieve Components 1 | . 1 . Scanalyzer . | . . . Garrison Access Hacks . | . . . Unauthorized Hacks 4 | . 3 1 Terminals 4 | . 3 1 Track 2 | . 2 . Operators 2 | . 1 1 Fabricators . | . . . Repair Stations . | . . . Recycling Units . | . . . Scanalyzers . | . . . Garrison Access . | . . . Data Cores Recovered . | . . . Used . | . . . Hacking Detections 7 | . 5 2 Full Trace Events . | . . . Feedback Events . | . . . Feedback Blocked . | . . . Robot Schematics Acquired . | . . . Robots Built . | . . . Authchips . | . . . Time . | . . . Total Robot Build Rating . | . . . Part Schematics Acquired . | . . . Parts Built . | . . . Authchips . | . . . Time . | . . . Total Part Build Rating . | . . . Parts Repaired . | . . . Time . | . . . Parts Recycled . | . . . Recycled Matter . | . . . Retrieved Matter . | . . . Retrieved Components 3 | . 3 . Parts Scanalyzed . | . . . Part Schematics Acquired . | . . . Parts Damaged . | . . . Bothacking | -11 -10 -9 ------------ Run | Scr Mat Mat Used RIF Installer . | . . . Robots Hacked . | . . . Non-combat . | . . . Combat . | . . . Robot Hacks Applied . | . . . Relay Couplers Released . | . . . Fabnet Peak Effective % . | . . . Robots Rewired . | . . . Allies Hacked . | . . . Hacks Repelled . | . . . Allies | -11 -10 -9 -------- Run | Scr Mat Mat Total Allies . | . . . Largest Group . | . . . Highest-Rated Group . | . . . Highest-Rated Ally . | . . . Total Orders . | . . . Ally Attacks . | . . . Total Damage . | . . . Kills . | . . . Allies Corrupted . | . . . Allies Melted . | . . . Intel | -11 -10 -9 ------- Run | Scr Mat Mat Robot Analysis Total 2 | . 1 1 Derelict Logs Recovered . | . . . Drone Launches . | . . . Drone Recoveries . | . . . Exploration | -11 -10 -9 ------------- Run | Scr Mat Mat Turns Passed 743 | 114 436 193 Spaces Moved 551 | 58 370 123 Core 2 | 2 . . Treads . | . . . Legs . | . . . Wheels 549 | 56 370 123 Hover . | . . . Flight . | . . . Fastest Speed 50 | 50 100 93 Average Speed 100 | 98 100 102 Slowest Speed 115 | 100 115 115 Overloaded Moves . | . . . Propulsion Burnouts . | . . . Robots Hopped . | . . . Cave-ins Triggered . | . . . Exploration Rate (%) 25 | 3 59 15 Regions Visited 2 Branch Regions . Pre-discovered Areas . | . . . Known Exits Taken . | . . . Unknown Exits Taken 2 | 1 1 . Scrap Searched . | . . . Spaces Dug . | . . . Terrain Destroyed 5 | . . 5 Melee . | . . . Projectile . | . . . AOE 5 | . . 5 Terrain Rammed . | . . . Walls Destroyed . | . . . Machines Disabled . | . . . Actions | -11 -10 -9 --------- Run | Scr Mat Mat Total 667 | 90 419 158 Wait 49 | 5 28 16 Move 549 | 57 369 123 Hop . | . . . Pick Up 15 | 6 7 2 Fast Attach 8 | 6 2 . Attach 2 | . . 2 Detach 1 | . 1 . Swap 1 | . 1 . Drop 2 | . 2 . Fire 40 | 16 9 15 Melee . | . . . Ram . | . . . Kick . | . . . Crush . | . . . Escape Stasis . | . . . Rewire . | . . . Trap . | . . . Miscellaneous . | . . . Route ------- -11/Scrapyard -10/Materials (discovered 2 exits: *Mat x2) -9/Materials History --------- Turn | Location | Event 22 | -11/Scrapyard | Discovered new exit (range 14) 115 | -11/Scrapyard | Entered Materials 134 | -10/Materials | Discovered new exit (range 16) 315 | -10/Materials | Build established: Mutant 439 | -10/Materials | Discovered new exit (range 11) 551 | -10/Materials | Entered another Materials area 551 | -9/Materials | Evolved 2 slots: Propulsion x1, Weapon x1 744 | -9/Materials | Self-destructed Last Messages --------------- 00631_ Y-45 Defender Beam Rifle blasted off. 00634_ Y-45 Defender suffers critical hit (Burn). 00634_ Y-45 Defender destroyed. 00638_ Acquired 56 matter. 00641_ R-06 Scavenger collects Beam Rifle. 00644_ R-06 Scavenger collects Corrupted Heat Sink. 00648_ R-06 Scavenger collects Lgt. Armor Plating. 00663_ Chain reaction triggered in Lgt. Ion Engine. 00663_ Com. Wheel melted. 00663_ R-06 Scavenger destroyed. 00666_ Wheel destroyed. 00666_ Y-45 Defender destroyed. 00684_ B-36 Bruiser destroyed. 00690_ G-34 Mercenary destroyed. 00693_ Acquired 38 matter. 00695_ Acquired 25 matter. 00725_ Y-45 Defender destroyed. 00726_ Acquired 4 matter. 00738_ K-01 Serf cleans the Atomic Centrifuge. 00744_ Connecting with Terminal... Map ----- +----------------------------------------------------+ | ?????????????????????????????????????????????????? | | ?????????????????????????????????????????????????? | | ?????????????????????????????????????????????????? | | ?????????????????????????????????????????????????? | | ?????????????????????????????????????????????????? | | ?????????????????????????????????????????????????? | | ?????????????????????????????????????????????????? | | ?????????????????????????????????????????????????? | | ?????????????????????????????????????????????????? | | ?????????????????????????????????????????????????? | | ?????????????????????????????????????????????????? | | ?????????????????????????????????????????????????? | | ?????????????????????????????????????????????????? | | ?????????????????????????????????????????????????? | | ?????????????????????????????????????????????????? | | ?????????????????????????????????????????????????? | | ?????????????????????????????????????????????????? | | ?????????????????????????????????????????????????? | | ??????????????????????????????????????????######## | | ??????????????????????????????????????????# # | | ??????????????????????????????????????????# # | | ??????????????????????????????????????????# # | | ??????????????????????????????????????????# # | | ??????????????????????#############???????# # | | ??????????????????????+ T #?###+### # | | ??????????????????????# @ #?#% ##+### | | ??????????????????????# ### % % | | ??????????????????????# """ """ + % %% | | ??????????????????????# """ """ ### | | ??????????????????????# """ """ #?# ######## | | ??????????????????????+ k #?### ###??????# | | ??????????????????????#############???# #????????? | | ??????????????????????????????????????# #????????? | | ?????????????????????????????????????? ????????? | | ?????????????????????????????????????? ????????? | | ?????????????????????????????????????# ????????? | | ?????????????????????????????????????# #???????? | | ???????????o?????????????????????????# #???????? | | ????????????????????????????????????? ???????? | | ????????????????????????????????????? ???????? | | ????????????????????????????????????? !% ???????? | | ?????????????????????????????????????? ! ???????? | | ?????????????????????????????????????? ????????? | | ?????????????????????????????????????????????????? | | ?????????????????????????????????????????????????? | | ?????????????????????????????????????????????????? | | ?????????????????????????????????????????????????? | | ?????????????????????????????????????????????????? | | ?????????????????????????????????????????????????? | | ?????????????????????????????????????????????????? | +----------------------------------------------------+ Best States ------------- Heat Dissipation 28 Energy Generation 10 Energy Capacity 250 Matter Stores 300 Matter Capacity 300 Sight Range 16 Terrain Scan Density 10 Evasion (%) 41 Item Schematics ----------------- None Robot Schematics ------------------ None Fabricated ------------ Nothing Alien Tech Used ----------------- None Achievements -------------- None Challenges ------------ None Game ------ Seed MachineThrusterRegenerator Manual? 0 Play Time 00:11:57 Cumulative 310.5 hours Start 2021.12.25 @ 06:10:02 End 2022.01.20 @ 12:50:27 Sessions 3 Manual Loads 0 Difficulty Rogue Special Mode Winter2021/Sauler Game No. 397 Rogue 393 Adventurer 0 Explorer 4 Win Type - Total 5 Types 4/0/0/1/0/0/0/0/0 Lore% 77 Gallery% 85 Achievement% 63 Wizard Run 0 Options --------- ASCII 1 Keyboard 1 Movement Numpad Keybinds 0 Fullscreen 2 Font 18/X11 Map View 76x50 Tactical HUD 1 Map Filters NONE Filters NONE Steam 1 RUN: 3e1ef51e-b01a-4c30-a098-010f38843c69